bitfinex-derivatives/quotes_BTCF0:USTF0_20251230
["timestamp","ask_amount","ask_price","bid_price","bid_amount"]
[1767124616882,0.0113427,88249.0,88235.0,0.00016994]
[1767124617279,0.011343,88247.0,88236.0,0.0568]
[1767124617679,0.0113427,88249.0,88236.0,0.0568]
[1767124620983,0.011343,88247.0,88236.0,0.0568]
[1767124621783,0.0113423,88252.0,88236.0,0.0681442]
[1767124622084,0.0113426,88250.0,88236.0,0.0568]
[1767124623975,0.06122465,88274.0,88236.0,0.0568]
[1767124624188,0.04443,88261.0,88237.0,0.11332343]
[1767124624391,0.0568,88263.0,88237.0,0.11332343]
[1767124625075,0.0113416,88257.0,88242.0,0.0113434]
[1767124625284,0.0113416,88257.0,88239.0,0.0113438]
[1767124626287,0.0113416,88257.0,88241.0,0.0113436]
[1767124628991,0.00016994,88258.0,88241.0,0.0113436]
[1767124630292,0.0568,88263.0,88249.0,0.0113426]
[1767124631793,0.0568,88263.0,88246.0,0.0113429]
[1767124631993,0.0113411,88262.0,88246.0,0.0113429]
[1767124632196,0.0113413,88260.0,88243.0,0.0113433]
[1767124632388,0.0681409,88263.0,88246.0,0.0113429]
[1767124637098,0.0113412,88261.0,88245.0,0.0964]
[1767124637997,0.0113412,88261.0,88245.0,0.1532]
[1767124638394,0.0568,88263.0,88245.0,0.1532]
[1767124638999,0.0113416,88257.0,88245.0,0.1532]
[1767124639597,0.0113419,88255.0,88245.0,0.1532]
[1767124640400,0.0113415,88258.0,88245.0,0.1532]
[1767124640901,0.0113412,88261.0,88245.0,0.1532]
[1767124641799,0.0113417,88257.0,88245.0,0.1532]
[1767124643099,0.0113412,88260.0,88245.0,0.1532]
[1767124644603,0.0568,88263.0,88245.0,0.1532]
[1767124644809,0.0681409,88263.0,88246.0,0.011343]
[1767124649403,0.0568,88263.0,88248.0,0.0113427]
[1767124650207,0.0568,88263.0,88250.0,0.0113424]
[1767124657603,0.0568,88263.0,88246.0,0.0113429]
[1767124659211,0.0681409,88263.0,88246.0,0.0113429]
[1767124660406,0.0113411,88261.0,88245.0,0.1532]
[1767124660611,0.011341,88262.0,88245.0,0.164543]
[1767124661016,0.0113413,88260.0,88245.0,0.164543]
[1767124661710,0.0113411,88261.0,88245.0,0.164543]
[1767124667206,0.0113413,88260.0,88245.0,0.1532]
[1767124668716,0.0113408,88263.0,88246.0,0.011343]
[1767124669421,0.0113408,88263.0,88248.0,0.0113427]
[1767124670120,0.0113405,88266.0,88245.0,0.1532]
[1767124670316,0.02632498,88265.0,88245.0,0.1532]
[1767124670516,0.0113405,88266.0,88245.0,0.1532]
[1767124670715,0.02632531,88265.0,88245.0,0.1532]
[1767124670915,0.0113405,88266.0,88245.0,0.1532]
[1767124671116,0.02632531,88265.0,88245.0,0.1532]
[1767124671315,0.0113405,88266.0,88249.0,0.0113425]
[1767124671518,0.02632575,88265.0,88249.0,0.0113425]
[1767124671717,0.0113405,88266.0,88249.0,0.0113425]
[1767124671917,0.02632575,88265.0,88249.0,0.0113425]
[1767124672114,0.0113405,88266.0,88249.0,0.0113425]
[1767124672312,0.02632575,88265.0,88249.0,0.0113425]
[1767124672513,0.0113405,88266.0,88249.0,0.0113425]
[1767124672713,0.02632595,88265.0,88249.0,0.0113425]
[1767124672921,0.0113405,88266.0,88249.0,0.0113425]
[1767124673121,0.02632579,88265.0,88249.0,0.0113425]
[1767124673321,0.0113405,88266.0,88249.0,0.0113425]
[1767124673521,0.02632622,88265.0,88249.0,0.0113425]
[1767124673820,0.0113405,88266.0,88251.0,0.0113423]
[1767124674017,0.0568,88268.0,88256.0,0.0113417]
[1767124674214,0.0113395,88274.0,88258.0,0.0113414]
[1767124674421,0.0113395,88274.0,88258.0,0.0964]
[1767124674808,0.0113397,88272.0,88258.0,0.0964]
[1767124681624,0.0113377,88287.0,88269.0,0.01134]
[1767124681933,0.0113377,88287.0,88270.0,0.19562773]
[1767124682522,0.0113377,88287.0,88270.0,0.29202773]
[1767124682724,0.0113382,88284.0,88270.0,0.29202773]
[1767124682926,0.0113385,88282.0,88270.0,0.1532]
[1767124683126,0.0113389,88279.0,88270.0,0.1532]
[1767124685734,0.0113384,88282.0,88270.0,0.1532]
[1767124686433,0.0113386,88281.0,88270.0,0.1532]
[1767124690738,0.66581478,88290.0,88270.0,0.1532]
[1767124690931,0.02614243,88289.0,88270.0,0.1532]
[1767124691132,0.0113386,88281.0,88270.0,0.1532]
[1767124691632,0.0113394,88275.0,88268.0,0.05696994]
[1767124692236,0.0113389,88278.0,88268.0,0.05696994]
[1767124693734,0.0113376,88289.0,88268.0,0.05696994]
[1767124694039,0.0113388,88279.0,88268.0,0.05696994]
[1767124695941,0.0113391,88277.0,88268.0,0.05696994]
[1767124697045,0.0113376,88289.0,88268.0,0.05696994]
[1767124697335,0.02614577,88288.0,88268.0,0.05696994]
[1767124697541,0.0113391,88277.0,88268.0,0.05696994]
[1767124699440,0.0113397,88273.0,88268.0,4e-08]
[1767124699641,0.23518773,88280.0,88250.0,0.13882773]
[1767124699844,0.0261567,88279.0,88255.0,0.0113418]
[1767124700045,0.01134,88270.0,88255.0,0.0113418]
[1767124700439,0.00016994,88271.0,88255.0,0.0113418]
[1767124701942,0.01150984,88271.0,88255.0,0.0113418]
[1767124702143,0.01150984,88271.0,88255.0,0.1011355]
[1767124702334,0.01150984,88271.0,88257.0,0.0113416]
[1767124702541,0.01150984,88271.0,88258.0,0.0568]
[1767124703140,0.00016994,88271.0,88258.0,0.0568]
[1767124707455,0.00016994,88271.0,88260.0,0.13882773]
[1767124710553,0.23518773,88280.0,88260.0,0.13882773]
[1767124710857,0.02617926,88279.0,88260.0,0.13882773]
[1767124711055,0.02617926,88278.0,88260.0,0.13882773]
[1767124711354,0.23518773,88280.0,88260.0,0.13882773]
[1767124711655,0.0113395,88274.0,88260.0,0.13882773]
[1767124712957,0.0113398,88272.0,88260.0,0.13882773]
[1767124715757,0.0113398,88272.0,88258.0,0.15316]
[1767124717863,0.0113398,88272.0,88258.0,0.1645014]
[1767124720467,0.23518773,88280.0,88258.0,0.1645014]
[1767124720468,0.0113396,88273.0,88258.0,0.1645014]
[1767124721766,0.0113396,88273.0,88260.0,0.13882773]
[1767124727366,0.0113392,88276.0,88260.0,0.15016883]
[1767124727763,0.0113392,88276.0,88263.0,0.0113408]
[1767124727968,0.0113392,88276.0,88263.0,0.0568]
[1767124729069,0.09636,88280.0,88263.0,0.0568]
[1767124729273,0.0260907,88279.0,88263.0,0.0568]
[1767124729469,0.0260907,88278.0,88263.0,0.0568]
[1767124729676,0.0260907,88277.0,88263.0,0.0568]
[1767124729869,0.0260907,88276.0,88263.0,0.0568]
[1767124730065,0.23518773,88280.0,88263.0,0.0568]
[1767124730265,0.0113392,88276.0,88263.0,0.0568]
[1767124731661,0.23518773,88280.0,88263.0,0.0568]
[1767124731861,0.0113394,88275.0,88263.0,0.0568]
[1767124734880,0.0113389,88279.0,88263.0,0.0568]
[1767124735078,0.0113391,88277.0,88263.0,0.0568]
[1767124735279,0.0113393,88275.0,88263.0,0.0568]
[1767124739680,0.23518773,88280.0,88263.0,0.0568]
[1767124739869,0.0113393,88276.0,88263.0,0.0568]
[1767124740269,0.0113395,88274.0,88263.0,0.0568]
[1767124742080,0.09636,88280.0,88263.0,0.0568]
[1767124742285,0.02609565,88279.0,88263.0,0.0568]
[1767124742482,0.02609565,88278.0,88263.0,0.0568]
[1767124742682,0.02609565,88277.0,88263.0,0.0568]
[1767124742982,0.0113395,88274.0,88263.0,0.0568]
[1767124746889,0.0113397,88272.0,88263.0,0.0568]
[1767124751285,0.09636,88280.0,88263.0,0.0568]
[1767124751589,0.0260968,88279.0,88263.0,0.0568]
[1767124751788,0.0260968,88278.0,88263.0,0.0568]
[1767124751983,0.0260968,88277.0,88263.0,0.0568]
[1767124752188,0.0260968,88276.0,88263.0,0.0568]
[1767124752391,0.0260968,88275.0,88263.0,0.0568]
[1767124752593,0.09636,88280.0,88263.0,0.0568]
[1767124752785,0.02609747,88279.0,88263.0,0.0568]
[1767124752985,0.02609747,88278.0,88263.0,0.0568]
[1767124753188,0.0113399,88271.0,88263.0,0.0568]
[1767124758300,0.09636,88280.0,88263.0,0.0568]
[1767124758496,0.02611096,88279.0,88263.0,0.0568]
[1767124758696,0.02611096,88278.0,88263.0,0.0568]
[1767124758898,0.0113396,88273.0,88263.0,0.0568]
[1767124759892,0.09636,88280.0,88263.0,0.0568]
[1767124760093,0.0113398,88271.0,88263.0,0.0568]
[1767124761500,0.0113395,88274.0,88263.0,0.0568]
[1767124761701,0.0113397,88272.0,88263.0,0.0568]
[1767124762104,0.09636,88280.0,88263.0,0.0568]
[1767124762702,0.02611063,88279.0,88263.0,0.0568]
[1767124762905,0.02611063,88278.0,88263.0,0.0568]
[1767124763201,0.0113395,88274.0,88263.0,0.0568]
[1767124763401,0.0113397,88272.0,88263.0,0.0568]
[1767124763606,0.09636,88280.0,88263.0,0.0568]
[1767124763798,0.0113396,88273.0,88263.0,0.0568]
[1767124763997,0.09636,88280.0,88263.0,0.0568]
[1767124764298,0.02611055,88279.0,88263.0,0.0568]
[1767124764497,0.02611055,88278.0,88263.0,0.0568]
[1767124764700,0.0113395,88274.0,88263.0,0.0568]
[1767124770310,0.0113397,88272.0,88263.0,0.0568]
[1767124772606,0.01134,88270.0,88263.0,0.0568]
[1767124772806,0.0113404,88267.0,88261.0,0.05676]
[1767124773109,0.01134,88270.0,88261.0,0.05676]
[1767124782414,0.0113403,88268.0,88261.0,0.05676]
[1767124782604,0.0113403,88268.0,88262.0,0.01132]
[1767124783216,0.011339,88278.0,88261.0,0.05676]
[1767124783417,0.0113404,88267.0,88261.0,0.05676]
[1767124784310,0.01134,88270.0,88261.0,0.05676]
[1767124784511,0.0113402,88268.0,88261.0,0.05676]
[1767124787614,0.0113398,88272.0,88261.0,0.05676]
[1767124787819,0.01134,88270.0,88261.0,0.05676]
[1767124792832,0.09636,88280.0,88261.0,0.05676]
[1767124793028,0.02611811,88279.0,88261.0,0.05676]
[1767124793230,0.01134,88270.0,88261.0,0.05676]
[1767124795336,0.0113396,88273.0,88261.0,0.05676]
[1767124795536,0.0113398,88271.0,88261.0,0.05676]
[1767124799942,0.0113402,88269.0,88261.0,0.05676]
[1767124800338,0.011342,88255.0,88240.0,0.08113985]
[1767124800538,0.0113418,88256.0,88241.0,0.15312]
[1767124801138,0.011342,88254.0,88242.0,0.11331637]
[1767124801340,0.0113423,88252.0,88242.0,0.05676]
[1767124801544,0.00016994,88257.0,88242.0,0.05676]
[1767124801941,0.0113421,88254.0,88242.0,0.05676]
[1767124802339,0.00016994,88257.0,88242.0,0.05676]
[1767124803539,0.0964,88272.0,88247.0,0.13889739]
[1767124803737,0.1077398,88272.0,88255.0,0.0113418]
[1767124803945,0.13889739,88270.0,88252.0,0.05676]
[1767124804142,0.0113405,88266.0,88252.0,0.05676]
[1767124804442,0.0113408,88264.0,88252.0,0.05676]
[1767124804845,0.0113414,88259.0,88252.0,0.05676]
[1767124805144,0.13889739,88270.0,88252.0,0.05676]
[1767124805340,0.0964,88272.0,88252.0,0.05676]
[1767124805545,0.0113406,88265.0,88252.0,0.05676]
[1767124806142,0.011341,88262.0,88252.0,0.05676]
[1767124806345,0.011341,88262.0,88250.0,0.00016994]
[1767124807448,0.0113406,88265.0,88250.0,0.00016994]
[1767124808250,0.0113409,88263.0,88250.0,0.00016994]
[1767124808650,0.0113407,88265.0,88250.0,0.00016994]
[1767124808843,0.0113409,88263.0,88250.0,0.00016994]
[1767124810150,0.0113412,88261.0,88250.0,0.00016994]
[1767124813547,0.13889739,88270.0,88250.0,0.00016994]
[1767124814056,0.0964,88272.0,88250.0,0.00016994]
[1767124814243,0.0113403,88268.0,88251.0,0.0113423]
[1767124814442,0.0964,88272.0,88251.0,0.0113423]
[1767124814643,0.0113403,88268.0,88251.0,0.0113423]
[1767124815255,0.13889739,88270.0,88250.0,0.00016994]
[1767124815448,0.0113401,88270.0,88250.0,0.00016994]
[1767124815648,0.15023749,88270.0,88251.0,0.0113423]
[1767124816753,0.15316,88269.0,88251.0,0.0113423]
[1767124816948,0.15316,88269.0,88253.0,0.0113421]
[1767124817953,0.15316,88269.0,88255.0,0.0113418]
[1767124819152,0.15316,88269.0,88250.0,0.13906733]
[1767124819354,0.15316,88269.0,88258.0,0.0113414]
[1767124820449,0.0113394,88275.0,88250.0,0.13906733]
[1767124820656,0.17950018,88274.0,88263.0,0.0113407]
[1767124820851,0.15316,88274.0,88263.0,0.0113407]
[1767124821552,0.011339,88278.0,88263.0,0.0113407]
[1767124821752,0.17949955,88277.0,88263.0,0.0113407]
[1767124822052,0.03767875,88276.0,88260.0,0.01151104]
[1767124822255,0.02633955,88275.0,88260.0,0.01151104]
[1767124822554,0.0113394,88274.0,88260.0,0.01151104]
[1767124823453,0.0113394,88274.0,88260.0,0.00016994]
[1767124825252,0.0113397,88272.0,88260.0,0.00016994]
[1767124825447,0.15316,88277.0,88260.0,0.00016994]
[1767124825752,0.02633968,88276.0,88260.0,0.00016994]
[1767124825954,0.0113396,88273.0,88260.0,0.00016994]
[1767124826853,0.0113401,88269.0,88260.0,0.00016994]
[1767124827554,0.0113397,88272.0,88260.0,0.00016994]
[1767124828852,0.01134,88270.0,88260.0,0.00016994]
[1767124829954,0.0113401,88269.0,88260.0,0.00016994]
[1767124831654,0.15316,88277.0,88260.0,0.00016994]
[1767124831854,0.13889739,88270.0,88260.0,0.00016994]
[1767124833156,0.0113404,88267.0,88260.0,0.00016994]
[1767124833456,0.15023739,88270.0,88260.0,0.00016994]
[1767124834157,0.0113395,88273.0,88260.0,0.00016994]
[1767124834455,0.02634995,88272.0,88260.0,0.00016994]
[1767124834648,0.02634995,88271.0,88260.0,0.00016994]
[1767124834853,0.02634995,88270.0,88260.0,0.00016994]
[1767124835049,0.0113395,88273.0,88260.0,0.00016994]
[1767124835256,0.02635049,88272.0,88260.0,0.00016994]
[1767124835456,0.02635049,88271.0,88260.0,0.00016994]
[1767124835757,0.0113395,88273.0,88260.0,0.00016994]
[1767124835954,0.02634995,88272.0,88260.0,0.00016994]
[1767124836150,0.02634995,88271.0,88260.0,0.00016994]
[1767124836345,0.0113395,88273.0,88260.0,0.00016994]
[1767124836550,0.0113398,88271.0,88260.0,0.00016994]
[1767124836751,0.0113401,88269.0,88260.0,0.00016994]
[1767124836946,0.01134,88270.0,88252.0,0.0113422]
[1767124837961,0.00016994,88270.0,88252.0,0.00016994]
[1767124838156,0.0113404,88267.0,88252.0,0.00016994]
[1767124840567,0.0113401,88269.0,88253.0,0.0113421]
[1767124841764,0.05676,88268.0,88247.0,0.0113428]
[1767124841959,0.05676,88268.0,88246.0,0.05676]
[1767124842161,0.011341,88262.0,88248.0,0.11330032]
[1767124842367,0.011341,88262.0,88246.0,0.0681029]
[1767124842667,0.011341,88262.0,88236.0,0.01648544]
[1767124842668,0.0113434,88243.0,88237.0,0.01238985]
[1767124842864,0.00016994,88249.0,88232.0,0.18844915]
[1767124843067,0.0113433,88244.0,88232.0,0.0964]
[1767124843368,0.0113437,88241.0,88231.0,0.00016994]
[1767124844163,0.00016994,88249.0,88231.0,0.00016994]
[1767124844462,0.0112938,88240.0,88223.0,0.0113459]
[1767124844971,0.13889739,88241.0,88220.0,0.13889739]
[1767124844972,0.13889739,88241.0,88225.0,0.0113456]
[1767124845167,0.13889739,88241.0,88220.0,0.13889739]
[1767124845168,0.05676,88242.0,88227.0,0.0113454]
[1767124846674,0.05676,88242.0,88226.0,4e-08]
[1767124846966,0.0113471,88215.0,88187.0,0.0568]
[1767124847157,0.0113474,88213.0,88192.0,0.0113498]
[1767124847359,0.13889739,88210.0,88192.0,0.12468479]
[1767124847560,0.13889739,88210.0,88192.0,0.0113498]
[1767124847762,0.1532,88214.0,88195.0,0.0113495]
[1767124847957,0.00025662,88213.0,88196.0,0.00017004]
[1767124850166,0.0113475,88212.0,88196.0,0.00017004]
[1767124851271,0.00025662,88213.0,88196.0,0.00017004]
[1767124851571,0.01160392,88213.0,88196.0,0.00017004]
[1767124853469,0.15024509,88210.0,88196.0,0.00017004]
[1767124855474,0.0113481,88207.0,88187.0,0.0964]
[1767124855677,0.0568,88206.0,88187.0,0.0964]
[1767124855968,0.0568,88206.0,88188.0,0.0113504]
[1767124856171,0.13889739,88200.0,88180.0,0.01157772]
[1767124856470,0.0568,88199.0,88185.0,0.0113507]
[1767124863692,0.0568,88199.0,88181.0,0.01152134]
[1767124863889,0.0113492,88198.0,88181.0,0.01152134]
[1767124864090,0.0568,88199.0,88183.0,0.011351]
[1767124864290,0.0568,88199.0,88186.0,0.0113507]
[1767124869498,0.0681491,88199.0,88181.0,0.00017004]
[1767124869696,0.0113494,88197.0,88181.0,0.00017004]
[1767124869897,0.0113494,88197.0,88181.0,0.01152134]
[1767124870399,0.0568,88199.0,88181.0,0.01152134]
[1767124870400,0.0113492,88198.0,88181.0,0.01152134]
[1767124874392,0.0568,88199.0,88183.0,0.011351]
[1767124875902,0.0681491,88199.0,88181.0,0.00017004]
[1767124876499,0.0681491,88199.0,88182.0,0.0113512]
[1767124877396,0.0681491,88199.0,88181.0,0.00017004]
[1767124877397,0.0113496,88195.0,88181.0,0.00017004]
[1767124877600,0.0113499,88193.0,88181.0,0.00017004]
[1767124878493,0.0113495,88196.0,88181.0,0.00017004]
[1767124882599,0.0113495,88196.0,88181.0,0.01152134]
[1767124883605,0.0113495,88196.0,88181.0,0.00017004]
[1767124884695,0.0113506,88188.0,88181.0,4e-08]
[1767124884903,0.0001082,88187.0,88172.0,0.0113525]
[1767124885103,0.0114589,88187.0,88172.0,0.0113525]
[1767124888204,0.0001082,88187.0,88172.0,0.0113525]
[1767124890213,0.0001082,88187.0,88171.0,0.00011341]
[1767124890214,0.0114589,88187.0,88171.0,0.00011341]
[1767124890511,0.0113509,88185.0,88171.0,0.00011341]
[1767124890704,0.0113508,88186.0,88171.0,0.00011341]
[1767124890904,0.0113511,88184.0,88171.0,0.00011341]
[1767124891201,0.0113524,88174.0,88156.0,0.09234848]
[1767124891407,0.0113529,88169.0,88150.0,0.0113554]
[1767124891607,0.0113529,88169.0,88152.0,0.11340761]
[1767124891806,0.0113529,88169.0,88150.0,0.0113554]
[1767124892013,0.00017014,88168.0,88150.0,0.0113554]
[1767124892318,0.00017014,88168.0,88152.0,0.011355]
[1767124894320,0.00017014,88168.0,88154.0,0.0113548]
[1767124895208,0.00017014,88168.0,88154.0,0.0113048]
[1767124895521,0.00017014,88168.0,88159.0,0.0113542]
[1767124895711,0.00017014,88168.0,88146.0,0.1075321]
[1767124895712,0.05684,88182.0,88165.0,0.0113533]
[1767124895911,0.06122465,88199.0,88158.0,0.0113543]
[1767124896123,0.0113492,88198.0,88179.0,0.0113515]
[1767124896312,0.09648,88199.0,88179.0,0.0113515]
[1767124896617,0.01151934,88198.0,88180.0,0.00017014]
[1767124896819,0.0113496,88196.0,88180.0,0.00017014]
[1767124897212,9.203e-05,88195.0,88180.0,0.00017014]
[1767124900229,0.0113498,88194.0,88180.0,0.00017014]
[1767124901122,9.203e-05,88195.0,88180.0,0.00017014]
[1767124906321,0.01144163,88195.0,88180.0,0.00017014]
[1767124906732,0.15332,88194.0,88180.0,0.00017014]
[1767124907421,0.05684,88194.0,88180.0,0.00017014]
[1767124907617,0.09648,88193.0,88180.0,0.00017014]
[1767124910328,9.203e-05,88195.0,88180.0,0.00017014]
[1767124910625,0.15332,88194.0,88180.0,0.00017014]
[1767124911423,0.05684,88193.0,88180.0,0.00017014]
[1767124911618,9.203e-05,88195.0,88180.0,0.00017014]
[1767124911818,0.15332,88194.0,88180.0,0.00017014]
[1767124914320,0.05684,88193.0,88180.0,0.00017014]
[1767124914525,0.05684,88192.0,88180.0,0.00017014]
[1767124917620,0.0113504,88189.0,88180.0,1.4e-07]
[1767124918224,0.0113509,88186.0,88164.0,0.09263773]
[1767124918429,0.09648,88194.0,88164.0,0.0113535]
[1767124918430,0.0113513,88182.0,88164.0,0.0113535]
[1767124918630,0.09648,88181.0,88166.0,0.0113533]
[1767124923736,0.1078314,88181.0,88163.0,0.1078336]
[1767124923930,0.1078314,88181.0,88165.0,0.0113533]
[1767124924327,0.09648,88181.0,88167.0,0.0113531]
[1767124933842,0.05684,88180.0,88167.0,0.0113531]
[1767124934342,0.05684,88180.0,88167.0,0.07252341]
[1767124934742,0.05684,88180.0,88170.0,0.13911713]
[1767124935145,0.05684,88180.0,88167.0,0.07252341]
[1767124935534,0.05684,88180.0,88170.0,0.07354713]
[1767124935744,0.05684,88180.0,88167.0,0.07252341]
[1767124936648,0.05684,88180.0,88169.0,0.0113529]
[1767124942845,0.05684,88180.0,88168.0,0.06117031]
[1767124943544,0.05684,88180.0,88168.0,0.07252331]
[1767124943741,0.20730873,88180.0,88163.0,0.09648]
[1767124943945,0.19612727,88180.0,88156.0,0.05684]
[1767124945245,0.0113519,88177.0,88158.0,0.0113543]
[1767124945651,0.20747887,88180.0,88160.0,0.011354]
[1767124945842,0.20747887,88180.0,88160.0,0.15047113]
[1767124946947,0.19612727,88180.0,88162.0,0.0113537]
[1767124947152,0.05684,88179.0,88162.0,0.0113537]
[1767124947451,0.15332,88179.0,88162.0,0.0113537]
[1767124951647,0.15332,88179.0,88160.0,0.011354]
[1767124951857,0.15332,88179.0,88163.0,0.01134]
[1767124953156,0.0113518,88178.0,88163.0,0.01134]
[1767124953356,0.15332,88179.0,88163.0,0.01134]
[1767124956154,0.1646718,88179.0,88163.0,0.01134]
[1767124956853,0.0113522,88175.0,88163.0,0.01134]
[1767124957053,0.05684,88174.0,88163.0,0.01134]
[1767124958754,0.0113524,88173.0,88156.0,0.05684]
[1767124958957,0.00011273,88172.0,88156.0,0.05684]
[1767124961661,0.00011273,88172.0,88157.0,0.01134]
[1767124966060,0.00011273,88172.0,88157.0,0.0226944]
[1767124968563,0.00011273,88172.0,88157.0,0.01134]
[1767124975266,0.01146533,88172.0,88157.0,0.01134]
[1767124977667,0.00011273,88172.0,88157.0,0.01134]
[1767124977962,0.00011273,88172.0,88163.0,0.0113536]
[1767124978280,0.05684,88177.0,88164.0,0.0113535]
[1767124979766,0.00017014,88180.0,88164.0,0.0113535]
[1767124979965,0.15332,88179.0,88164.0,0.0113535]
[1767124980166,0.15332,88179.0,88161.0,0.0113539]
[1767124980564,0.15332,88179.0,88157.0,0.01134]
[1767124981968,0.0113519,88177.0,88157.0,0.0226945]
[1767124983468,0.0113519,88177.0,88160.0,0.13911713]
[1767124984574,0.0113519,88177.0,88159.0,0.0113542]
[1767124984766,0.15332,88179.0,88161.0,0.0113539]
[1767124984964,0.15332,88179.0,88157.0,0.01134]
[1767124986274,0.15332,88179.0,88165.0,0.0113533]
[1767124990971,0.15332,88179.0,88166.0,0.01134]
[1767124992169,0.05684,88178.0,88166.0,0.01134]
[1767124992373,0.0113508,88186.0,88167.0,0.0113531]
[1767124992571,0.0113504,88189.0,88171.0,0.0113525]
[1767124992772,0.08249945,88188.0,88166.0,0.01134]
[1767124993072,0.0113487,88202.0,88185.0,0.0113508]
[1767124993272,0.0113491,88199.0,88185.0,0.00017014]
[1767124995379,0.05684,88198.0,88185.0,0.00017014]
[1767125002989,0.0681876,88211.0,88186.0,0.26670961]
[1767125003190,0.0113478,88209.0,88186.0,0.26670961]
[1767125003594,0.0113478,88209.0,88190.0,0.0113501]
[1767125003888,0.05684,88210.0,88185.0,0.00017014]
[1767125004078,0.05684,88210.0,88168.0,0.09648]
[1767125004079,0.13913258,88200.0,88168.0,0.09648]
[1767125004281,0.0113518,88178.0,88164.0,0.09648]
[1767125005082,0.00017014,88180.0,88164.0,0.09648]
[1767125010800,0.00017014,88180.0,88165.0,0.05684]
[1767125014609,0.00017014,88180.0,88162.0,0.00017014]
[1767125014798,0.0113545,88157.0,88140.0,0.18334309]
[1767125015111,0.05684,88167.0,88143.0,0.15332]
[1767125015314,0.0113549,88154.0,88143.0,0.15332]
[1767125015710,0.01152464,88157.0,88143.0,0.15332]
[1767125016014,0.00017014,88157.0,88143.0,0.15332]
[1767125017005,0.00017014,88157.0,88141.0,0.0113565]
[1767125017406,0.00017014,88157.0,88143.0,0.05684]
[1767125017811,0.01152474,88157.0,88143.0,0.05684]
[1767125018109,0.00017014,88157.0,88143.0,0.05684]
[1767125018312,0.0113551,88153.0,88143.0,0.05684]
[1767125019412,0.0113551,88153.0,88142.0,0.05]
[1767125019619,0.0113551,88153.0,88143.0,0.05684]
[1767125024214,0.09648,88155.0,88135.0,0.01527457]
[1767125024414,0.09648,88155.0,88136.0,0.05684]
[1767125025018,0.0113554,88150.0,88136.0,0.05684]
[1767125025524,0.0113562,88144.0,88135.0,0.01527457]
[1767125026014,0.09648,88155.0,88122.0,0.0113589]
[1767125026213,0.09648,88155.0,88124.0,0.0113586]
[1767125026419,0.09648,88155.0,88120.0,0.1248112]
[1767125026614,0.0113572,88137.0,88121.0,0.15332]
[1767125026918,0.0113572,88137.0,88122.0,0.05684]
[1767125027312,0.00017014,88138.0,88122.0,0.05684]
[1767125027822,0.00017014,88138.0,88122.0,0.011359]
[1767125028120,0.00017014,88138.0,88123.0,0.05684]
[1767125032212,0.00017014,88138.0,88122.0,0.011359]
[1767125032417,0.00017014,88138.0,88123.0,0.05684]
[1767125033316,0.00017014,88138.0,88124.0,0.0113587]
[1767125035731,0.00017014,88138.0,88123.0,0.05684]
[1767125038537,0.09648,88145.0,88126.0,0.0113584]
[1767125038729,0.0113557,88148.0,88128.0,0.0113581]
[1767125038921,0.09652,88149.0,88128.0,0.0113581]
[1767125039122,0.0113557,88148.0,88123.0,0.05684]
[1767125039322,0.09652,88152.0,88130.0,0.0113578]
[1767125039521,0.00017014,88150.0,88132.0,0.00017014]
[1767125040334,0.0113557,88148.0,88132.0,0.00017014]
[1767125041027,0.0113557,88148.0,88132.0,0.01152774]
[1767125041834,0.0113527,88171.0,88139.0,0.0113567]
[1767125042023,0.0113541,88160.0,88141.0,0.0113564]
[1767125042224,0.0113544,88158.0,88141.0,0.0113564]
[1767125042929,0.09652,88174.0,88157.0,4e-05]
[1767125043122,0.0113504,88189.0,88155.0,0.05688]
[1767125043123,0.0113537,88164.0,88155.0,0.05688]
[1767125048530,0.0113537,88164.0,88155.0,0.05684]
[1767125053638,0.00017014,88168.0,88155.0,0.05684]
[1767125055342,0.0113536,88165.0,88155.0,0.05684]
[1767125057530,0.00017014,88168.0,88155.0,0.05684]
[1767125057730,0.0113536,88165.0,88155.0,0.05684]
[1767125062243,0.0113538,88163.0,88156.0,0.05684]
[1767125062435,0.0113538,88163.0,88157.0,0.05684]
[1767125062636,0.0113534,88166.0,88157.0,0.05684]
[1767125063142,0.0113534,88166.0,88156.0,0.05684]
[1767125063338,0.0113534,88166.0,88151.0,0.00017014]
[1767125063534,0.0113534,88166.0,88152.0,0.05684]
[1767125067441,0.00017014,88168.0,88152.0,0.05684]
[1767125067837,0.0113517,88179.0,88158.0,0.13918209]
[1767125068138,0.09652,88186.0,88171.0,0.0113527]
[1767125068342,0.0113506,88188.0,88172.0,0.0113525]
[1767125068542,0.15336,88187.0,88172.0,0.0113525]
[1767125068842,0.0113508,88186.0,88171.0,0.00017014]
[1767125069933,0.09652,88187.0,88179.0,0.0113516]
[1767125069934,0.09647,88187.0,88179.0,0.0113516]
[1767125070137,0.05357067,88194.0,88183.0,0.011351]
[1767125070333,0.0113487,88202.0,88185.0,0.0113508]
[1767125070538,0.0113487,88202.0,88185.0,0.0113008]
[1767125070736,0.0113487,88202.0,88184.0,0.05684]
[1767125070937,0.0113491,88200.0,88184.0,0.05684]
[1767125071345,0.00017014,88201.0,88185.0,0.0113508]
[1767125075551,0.00017014,88201.0,88184.0,0.05684]
[1767125079347,0.011349,88200.0,88184.0,0.05684]
[1767125081249,0.06122465,88219.0,88192.0,0.0113499]
[1767125081442,0.02535192,88218.0,88209.0,0.13918209]
[1767125081646,0.07286902,88238.0,88209.0,0.05684]
[1767125081950,0.0113453,88229.0,88210.0,0.0113476]
[1767125082453,0.00011271,88228.0,88211.0,0.00017003]
[1767125082852,0.0113455,88227.0,88211.0,0.00017003]
[1767125084354,0.00011271,88228.0,88211.0,0.00017003]
[1767125084559,2.71e-06,88228.0,88211.0,0.00017003]
[1767125085251,2.71e-06,88228.0,88211.0,0.01151753]
[1767125086557,2.71e-06,88228.0,88211.0,0.00017003]
[1767125086752,2.71e-06,88228.0,88219.0,0.0113464]
[1767125086952,0.09648,88237.0,88219.0,0.0113464]
[1767125087652,0.09648,88237.0,88220.0,0.05684]
[1767125087858,0.0113454,88228.0,88221.0,0.09648]
[1767125088557,0.0113454,88228.0,88211.0,0.00017003]
[1767125088770,0.13918209,88230.0,88211.0,0.00017003]
[1767125088969,0.0113457,88226.0,88212.0,0.15328]
[1767125089161,0.0113457,88226.0,88213.0,0.15328]
[1767125089660,0.0113452,88229.0,88213.0,0.15328]
[1767125090370,0.0113456,88227.0,88213.0,0.15328]
[1767125091459,0.0113456,88227.0,88214.0,0.05684]
[1767125092072,0.13918209,88230.0,88211.0,0.00017003]
[1767125092270,0.13918209,88230.0,88212.0,0.15328]
[1767125092465,0.0113453,88229.0,88212.0,0.15328]
[1767125096972,0.0113455,88227.0,88212.0,0.15328]